bitfinex-derivatives/quotes_BTCF0:USTF0_20250528
["timestamp","ask_amount","ask_price","bid_price","bid_amount"]
[1748472178518,0.2906,107380.0,107370.0,1.3462284]
[1748472179129,0.2906,107380.0,107370.0,1.33631267]
[1748472179327,0.2906,107380.0,107370.0,1.34622839]
[1748472180329,0.2906,107380.0,107370.0,1.34622624]
[1748472180525,0.2906,107380.0,107370.0,1.33631267]
[1748472180727,0.2906,107380.0,107370.0,1.34622624]
[1748472180932,0.2906,107380.0,107370.0,1.34622629]
[1748472181118,0.2906,107380.0,107370.0,1.33631267]
[1748472181324,0.2906,107380.0,107370.0,1.346225]
[1748472182333,0.2906,107380.0,107370.0,1.34622537]
[1748472182930,0.2906,107380.0,107370.0,1.33631267]
[1748472183117,0.2906,107380.0,107370.0,1.34622539]
[1748472184231,0.2906,107380.0,107370.0,1.34622503]
[1748472184824,0.2906,107380.0,107370.0,0.98542487]
[1748472185032,0.2906,107380.0,107370.0,1.27135267]
[1748472185620,0.2906,107380.0,107370.0,1.28578042]
[1748472186333,0.2906,107380.0,107370.0,1.28578641]
[1748472186633,0.2906,107380.0,107370.0,1.28578783]
[1748472188339,0.2906,107380.0,107370.0,1.39009828]
[1748472189133,0.2906,107380.0,107370.0,1.31212168]
[1748472189438,0.2906,107380.0,107370.0,1.31212498]
[1748472190232,0.2906,107380.0,107370.0,1.31212941]
[1748472190631,0.2906,107380.0,107370.0,1.30219961]
[1748472190831,0.2906,107380.0,107370.0,1.31213161]
[1748472191431,0.2906,107380.0,107370.0,1.31213223]
[1748472192043,0.2906,107380.0,107370.0,1.30219961]
[1748472192228,0.2906,107380.0,107370.0,1.31213518]
[1748472193235,0.2906,107380.0,107370.0,1.31213759]
[1748472193534,0.2906,107380.0,107370.0,1.30219961]
[1748472193736,0.2906,107380.0,107370.0,1.31213759]
[1748472195042,0.2906,107380.0,107370.0,1.31214449]
[1748472196032,0.2906,107380.0,107370.0,1.31214631]
[1748472196334,0.2906,107380.0,107370.0,1.31214703]
[1748472196939,0.2906,107380.0,107370.0,1.31214771]
[1748472197626,0.2906,107380.0,107370.0,1.31215158]
[1748472197831,0.2906,107380.0,107370.0,1.442383]
[1748472198239,0.2906,107380.0,107370.0,1.33807498]
[1748472198640,0.2906,107380.0,107370.0,1.33807501]
[1748472199034,0.2906,107380.0,107370.0,1.33808106]
[1748472199343,0.2906,107380.0,107370.0,1.76364106]
[1748472199647,0.3237,107380.0,107370.0,1.76364106]
[1748472200145,0.3237,107380.0,107370.0,1.88571114]
[1748472200447,0.3237,107380.0,107370.0,1.89567667]
[1748472200745,0.31715075,107380.0,107370.0,1.17407667]
[1748472200934,0.31715075,107380.0,107370.0,1.88571114]
[1748472201238,0.31715075,107380.0,107370.0,1.75548034]
[1748472201440,0.31715075,107380.0,107370.0,1.93746087]
[1748472203839,0.31715075,107380.0,107370.0,2.06811919]
[1748472205641,0.75316915,107380.0,107370.0,1.4654888]
[1748472205840,0.79109318,107380.0,107370.0,1.2752499]
[1748472206041,0.80259137,107380.0,107370.0,1.06136937]
[1748472206246,0.67768212,107380.0,107370.0,1.06136937]
[1748472208341,0.6397599,107380.0,107370.0,1.06136937]
[1748472209143,1.22418915,107380.0,107370.0,0.11295187]
[1748472209338,1.2620803,107380.0,107370.0,0.08661764]
[1748472209543,1.2620803,107380.0,107370.0,0.08673764]
[1748472209741,1.2620803,107380.0,107370.0,0.27295494]
[1748472210032,1.30566418,107380.0,107370.0,0.27295494]
[1748472210239,1.2620803,107380.0,107370.0,0.19464285]
[1748472210538,1.26204916,107380.0,107370.0,0.19464285]
[1748472211947,1.26203705,107380.0,107370.0,0.19464285]
[1748472214852,1.26201443,107380.0,107370.0,0.19464285]
[1748472217049,1.68757443,107380.0,107370.0,0.19464285]
[1748472217951,1.90561568,107380.0,107370.0,0.00842555]
[1748472218157,2.35988847,107380.0,107370.0,0.00842555]
[1748472218340,1.87417922,107380.0,107370.0,0.19452285]
[1748472218659,1.87417922,107380.0,107370.0,0.00842555]
[1748472219246,1.87411587,107380.0,107370.0,0.00842555]
[1748472219950,1.87411587,107380.0,107370.0,0.00742555]
[1748472220352,1.87411587,107380.0,107370.0,0.03892555]
[1748472220562,1.87411587,107380.0,107370.0,0.22514285]
[1748472220952,1.87415587,107380.0,107370.0,0.22514285]
[1748472221254,1.87415587,107380.0,107370.0,0.25744285]
[1748472221657,1.87415587,107380.0,107370.0,0.25744295]
[1748472222049,1.87415587,107380.0,107370.0,0.07122555]
[1748472223152,1.87415587,107380.0,107370.0,0.03892555]
[1748472223659,1.87410348,107380.0,107370.0,0.03892555]
[1748472224157,1.87410348,107380.0,107370.0,0.03613555]
[1748472224349,1.87410348,107380.0,107370.0,0.22235285]
[1748472224547,1.87410348,107380.0,107370.0,0.25555285]
[1748472225451,1.76947148,107380.0,107370.0,0.25555285]
[1748472225652,1.76947148,107380.0,107370.0,0.28844285]
[1748472226857,1.72606048,107380.0,107370.0,0.28844285]
[1748472227359,1.76947148,107380.0,107370.0,0.28844285]
[1748472227560,1.40867148,107380.0,107370.0,0.28844285]
[1748472227854,1.36526048,107380.0,107370.0,0.28844285]
[1748472228069,1.36525207,107380.0,107370.0,0.28844285]
[1748472228355,0.93965207,107380.0,107370.0,0.28844285]
[1748472228544,1.31525207,107380.0,107370.0,0.34060399]
[1748472228747,0.81878915,107380.0,107370.0,0.46551324]
[1748472228945,0.81878915,107380.0,107370.0,0.34060399]
[1748472229542,0.6632799,107380.0,107370.0,0.82631324]
[1748472229761,0.6632799,107380.0,107370.0,0.90462533]
[1748472232760,0.5645599,107380.0,107370.0,0.90462533]
[1748472233054,0.25345075,107380.0,107370.0,1.02909068]
[1748472233457,0.25345075,107380.0,107370.0,0.95803987]
[1748472233660,0.43965085,107380.0,107370.0,1.06243648]
[1748472234052,0.25345075,107380.0,107370.0,1.06242207]
[1748472234253,0.43965085,107380.0,107370.0,0.98423969]
[1748472234564,0.43965085,107380.0,107370.0,1.06243303]
[1748472234757,0.43965085,107380.0,107370.0,1.06243278]
[1748472235261,0.43965085,107380.0,107370.0,0.98423969]
[1748472236060,0.43965085,107380.0,107370.0,1.06244466]
[1748472236663,0.43965085,107380.0,107370.0,0.98423969]
[1748472237256,0.44165085,107380.0,107370.0,1.36310953]
[1748472237752,0.56654569,107380.0,107370.0,0.93754953]
[1748472237956,0.92734569,107380.0,107370.0,0.30367954]
[1748472238155,0.98764569,107380.0,107370.0,0.30367954]
[1748472238458,1.02544271,107380.0,107370.0,0.22535486]
[1748472238655,1.02544271,107380.0,107370.0,0.17331372]
[1748472238965,1.02544271,107380.0,107370.0,0.22547486]
[1748472239368,1.02544271,107380.0,107370.0,0.17331372]
[1748472239554,1.02544271,107380.0,107370.0,0.14321372]
[1748472239754,1.02544271,107380.0,107370.0,0.03892555]
[1748472240061,1.06890395,107380.0,107370.0,0.03892555]
[1748472240467,1.19379879,107380.0,107370.0,0.03892555]
[1748472240870,1.06890395,107380.0,107370.0,0.03892555]
[1748472241068,1.06889055,107380.0,107370.0,0.03892555]
[1748472241465,1.06889055,107380.0,107370.0,0.22514285]
[1748472241972,1.06889055,107380.0,107370.0,0.25664285]
[1748472242469,1.06889055,107380.0,107370.0,0.2521273]
[1748472245063,0.70809055,107380.0,107370.0,0.2828273]
[1748472245469,1.06889055,107380.0,107370.0,0.2828273]
[1748472245661,1.06889055,107380.0,107370.0,0.28734285]
[1748472247774,1.06889055,107380.0,107370.0,0.10112555]
[1748472247970,1.06889055,107380.0,107370.0,0.28734285]
[1748472249875,1.0688539,107380.0,107370.0,0.28734285]
[1748472254482,1.06881813,107380.0,107370.0,0.28734285]
[1748472256684,1.49437813,107380.0,107370.0,0.28734285]
[1748472261893,1.61939567,107380.0,107370.0,0.28734285]
[1748472263292,1.61937367,107380.0,107370.0,0.28734285]
[1748472264786,1.36946129,107380.0,107370.0,0.28734285]
[1748472265096,1.61937367,107380.0,107370.0,0.28734285]
[1748472266390,1.67716719,107380.0,107370.0,0.28734285]
[1748472267397,1.67716719,107380.0,107370.0,0.28734295]
[1748472267596,1.63943388,107380.0,107370.0,0.28734295]
[1748472267801,1.67725597,107380.0,107370.0,0.10100555]
[1748472268097,1.67725597,107380.0,107370.0,0.28734305]
[1748472268289,1.67725597,107380.0,107370.0,0.35843122]
[1748472269293,1.76394625,107380.0,107370.0,0.35843122]
[1748472270591,1.51403387,107380.0,107370.0,0.35843122]
[1748472270887,1.76394625,107380.0,107370.0,0.35843122]
[1748472272083,1.68270703,107380.0,107370.0,0.35843122]
[1748472272289,1.76399752,107380.0,107370.0,0.35843122]
[1748472272691,1.76399752,107380.0,107370.0,0.17221372]
[1748472272898,1.72050591,107380.0,107370.0,0.16769817]
[1748472273197,1.72050591,107380.0,107370.0,0.35391557]
[1748472274290,1.72050591,107380.0,107370.0,0.16769817]
[1748472274994,1.72050591,107380.0,107370.0,0.35391557]
[1748472275700,1.72050591,107380.0,107370.0,0.16769817]
[1748472275998,1.72050591,107380.0,107370.0,0.35843112]
[1748472277600,1.72050591,107380.0,107370.0,0.17221372]
[1748472277801,1.72050591,107380.0,107370.0,0.35843102]
[1748472278504,1.72050591,107380.0,107370.0,0.10112555]
[1748472280907,1.68270703,107380.0,107370.0,0.10112555]
[1748472281206,1.72050418,107380.0,107370.0,0.10112555]
[1748472283004,1.89546037,107380.0,107370.0,0.07042555]
[1748472283199,1.90696037,107380.0,107370.0,0.07042555]
[1748472283894,1.90696037,107380.0,107370.0,0.07030555]
[1748472284093,1.84916685,107380.0,107370.0,0.07030555]
[1748472284297,1.84916685,107380.0,107370.0,0.07042555]
[1748472284699,1.90713908,107380.0,107370.0,0.07042555]
[1748472285310,1.90712765,107380.0,107370.0,0.07042555]
[1748472287700,1.86934193,107380.0,107370.0,0.07042555]
[1748472288100,1.44378193,107380.0,107370.0,0.07042555]
[1748472288309,1.85772193,107380.0,107370.0,0.10122555]
[1748472288514,1.73276574,107380.0,107370.0,0.10122555]
[1748472289209,0.94652574,107380.0,107370.0,0.64824295]
[1748472289399,0.44165085,107380.0,107370.0,0.99209668]
[1748472289709,0.56660704,107380.0,107370.0,1.05148291]
[1748472289905,0.56660704,107380.0,107370.0,0.97327823]
[1748472291908,0.44165085,107380.0,107370.0,0.84832204]
[1748472293411,0.44165085,107380.0,107370.0,0.80493041]
[1748472293612,0.44065085,107380.0,107370.0,0.80493041]
[1748472294609,0.44065085,107380.0,107370.0,0.80593041]
[1748472296319,0.44065085,107380.0,107370.0,1.00905116]
[1748472296617,0.44065085,107380.0,107370.0,0.97561938]
[1748472296819,0.44065085,107380.0,107370.0,1.0801457]
[1748472297117,0.44065085,107380.0,107370.0,0.97561938]
[1748472298320,0.44065085,107380.0,107370.0,0.85071865]
[1748472298818,0.44065085,107380.0,107370.0,0.98561938]
[1748472300819,0.44065085,107380.0,107370.0,0.86071865]
[1748472301119,0.25445075,107380.0,107370.0,0.98561938]
[1748472301417,0.25445075,107380.0,107370.0,1.69746387]
[1748472301719,0.25445075,107380.0,107370.0,1.70322146]
[1748472302406,0.25445075,107380.0,107370.0,1.69870591]
[1748472303214,0.25445075,107380.0,107370.0,1.44870591]
[1748472303723,0.25445075,107380.0,107370.0,1.31804759]
[1748472307515,0.25445075,107380.0,107370.0,1.67884759]
[1748472310610,0.25445075,107380.0,107370.0,1.58571559]
[1748472311017,0.19870175,107380.0,107370.0,1.949222]
[1748472311317,0.03167581,107380.0,107370.0,2.5522197]
[1748472311516,9.298e-05,107390.0,107380.0,0.1862]
[1748472311712,0.32009298,107390.0,107380.0,1.53868992]
[1748472311913,0.32009298,107390.0,107380.0,1.96497888]
[1748472312113,0.32009298,107390.0,107380.0,1.76497539]
[1748472312719,0.32009298,107390.0,107380.0,1.63181392]
[1748472313726,0.32109298,107390.0,107380.0,1.63181392]
[1748472313927,0.32109298,107390.0,107380.0,1.63281392]
[1748472314223,0.32109298,107390.0,107380.0,1.63560392]
[1748472316830,0.32109298,107390.0,107380.0,1.66830392]
[1748472317015,0.50727378,107390.0,107380.0,1.02499919]
[1748472317219,0.50727378,107390.0,107380.0,0.48871621]
[1748472317220,0.63217451,107390.0,107380.0,0.48871621]
[1748472317521,1.18483451,107390.0,107380.0,0.05599632]
[1748472317726,1.18483451,107390.0,107380.0,0.08203286]
[1748472317920,1.23483451,107390.0,107380.0,0.08191286]
[1748472318217,1.27820485,107390.0,107380.0,0.00391]
[1748472319416,1.27820485,107390.0,107380.0,0.00291]
[1748472319626,1.2827204,107390.0,107380.0,0.00291]
[1748472319829,1.2837204,107390.0,107380.0,0.00291]
[1748472320433,1.4406636,107390.0,107360.0,0.56211815]
[1748472320732,0.31111683,107370.0,107360.0,0.59925924]
[1748472320929,0.71967683,107370.0,107360.0,0.59925924]
[1748472321233,0.81457683,107370.0,107360.0,0.18637292]
[1748472321627,0.81457683,107370.0,107360.0,0.18649292]
[1748472323125,0.81657683,107370.0,107360.0,0.18649292]
[1748472324334,0.81657683,107370.0,107360.0,0.54729292]
[1748472325529,0.81657683,107370.0,107360.0,0.18649292]
[1748472325728,0.81657683,107370.0,107360.0,0.54729292]
[1748472325929,0.6916761,107370.0,107360.0,0.67219365]
[1748472326129,0.6916761,107370.0,107360.0,0.73659365]
[1748472326832,0.6600761,107370.0,107360.0,0.76699365]
[1748472327736,0.6600761,107370.0,107360.0,0.64209292]
[1748472328437,0.3424,107370.0,107360.0,0.76699365]
[1748472328739,0.5286163,107370.0,107360.0,0.69417924]
[1748472328938,0.5587163,107370.0,107360.0,0.69417924]
[1748472332231,0.5587163,107370.0,107360.0,0.64209292]
[1748472332631,0.3725,107370.0,107360.0,0.64209292]
[1748472332825,0.5587162,107370.0,107360.0,0.64209292]
[1748472333241,0.5587162,107370.0,107360.0,0.69412008]
[1748472333733,0.3725,107370.0,107360.0,0.81902081]
[1748472334941,0.5587162,107370.0,107360.0,0.81902081]
[1748472335241,0.3725,107370.0,107360.0,0.81902081]
[1748472336637,0.312,107370.0,107360.0,1.03714367]
[1748472336941,0.312,107370.0,107360.0,1.10811312]
[1748472337633,0.3426,107370.0,107360.0,1.10811312]
[1748472343240,0.312,107370.0,107360.0,1.10811312]
[1748472343637,0.312,107370.0,107360.0,1.05608596]
[1748472344953,0.312,107370.0,107360.0,1.16021217]
[1748472345432,0.312,107370.0,107360.0,0.93118523]
[1748472345638,0.4982167,107370.0,107360.0,0.88621913]
[1748472345844,0.4982167,107370.0,107360.0,0.95729983]
[1748472345845,0.5307167,107370.0,107360.0,0.95729983]
[1748472346042,0.38061555,107370.0,107360.0,1.03554416]
[1748472346249,0.38061555,107370.0,107360.0,0.95729983]
[1748472346445,0.38061555,107370.0,107360.0,0.88621913]
[1748472347048,0.3761,107370.0,107360.0,0.88621913]
[1748472347250,0.5623166,107370.0,107360.0,0.88621913]
[1748472351453,0.5623166,107370.0,107360.0,0.88609913]
[1748472353242,0.5623166,107370.0,107360.0,1.01099986]
[1748472357747,0.5623166,107370.0,107360.0,1.14110905]
[1748472358153,0.5623166,107370.0,107360.0,1.01099986]
[1748472358752,0.5623166,107370.0,107360.0,1.14110905]
[1748472362459,0.56683215,107370.0,107360.0,1.14110905]
[1748472363254,0.5623166,107370.0,107360.0,1.14110905]
[1748472366564,0.5623166,107370.0,107360.0,1.03698284]
[1748472367661,0.5623166,107370.0,107360.0,0.91208211]
[1748472367866,0.5623166,107370.0,107360.0,1.03698284]
[1748472368067,0.68721733,107370.0,107360.0,0.41128211]
[1748472368264,0.72041733,107370.0,107360.0,0.74661025]
[1748472368464,0.60003215,107370.0,107360.0,0.74673025]
[1748472369370,0.5955166,107370.0,107360.0,0.74673025]
[1748472370561,0.5623166,107370.0,107360.0,0.74673025]
[1748472377174,0.68721733,107370.0,107360.0,0.38593025]
[1748472377375,0.68721733,107370.0,107360.0,0.4642629]
[1748472377870,0.68729497,107370.0,107360.0,0.4642629]
[1748472378261,0.68729497,107370.0,107360.0,0.4643829]
[1748472379368,0.68729497,107370.0,107360.0,0.35974557]
[1748472379968,0.68731262,107370.0,107360.0,0.45016318]
[1748472380479,0.69182817,107370.0,107360.0,0.45004318]
[1748472380667,1.05262817,107370.0,107360.0,0.41886318]
[1748472380874,1.09614639,107370.0,107360.0,0.31001053]
[1748472381779,1.27114241,107370.0,107360.0,0.12644713]
[1748472382084,1.27114241,107370.0,107360.0,0.0553432]
[1748472382471,1.27114241,107370.0,107360.0,0.0552232]
[1748472382671,1.27114241,107370.0,107360.0,0.0553432]
[1748472382876,1.14614639,107370.0,107360.0,0.0553432]
[1748472383471,1.10262817,107370.0,107360.0,0.0553432]
[1748472383675,1.14611092,107370.0,107360.0,0.0553432]
[1748472384680,1.14159537,107370.0,107360.0,0.0553432]
[1748472385579,1.14159537,107370.0,107360.0,0.00304952]
[1748472385979,1.14159537,107370.0,107360.0,0.18928412]
[1748472387880,1.09811262,107370.0,107360.0,0.18928412]
[1748472388079,1.14157822,107370.0,107360.0,0.18928412]
[1748472388471,1.41744401,107370.0,107360.0,0.00304952]
[1748472388879,1.46066869,107370.0,107360.0,0.00292952]
[1748472389079,1.46066869,107370.0,107360.0,0.00304952]
[1748472389395,1.50414056,107370.0,107360.0,0.00304952]
[1748472389577,1.50865611,107370.0,107360.0,0.00304952]
[1748472391269,1.42196583,107370.0,107360.0,0.00304952]
[1748472391568,1.50865611,107370.0,107360.0,0.00304952]
[1748472391779,1.41745028,107370.0,107360.0,0.00304952]
[1748472392179,1.37397841,107370.0,107360.0,0.00304952]
[1748472392383,1.41744499,107370.0,107360.0,0.00304952]
[1748472392579,1.32430499,107370.0,107360.0,0.00304952]
[1748472393484,1.72294897,107370.0,107360.0,0.00304952]
[1748472393683,1.72294897,107370.0,107360.0,0.25398392]
[1748472393884,1.67294897,107370.0,107360.0,0.28718392]
[1748472394484,1.67294651,107370.0,107360.0,0.28718392]
[1748472395276,1.61521674,107370.0,107360.0,0.28718392]
[1748472395776,1.61521674,107370.0,107360.0,0.10094952]
[1748472396487,1.61521674,107370.0,107360.0,0.28718392]
[1748472396683,1.65243153,107370.0,107360.0,0.28718392]
[1748472399490,1.65243153,107370.0,107360.0,0.10094952]
[1748472400592,1.77742755,107370.0,107360.0,0.10094952]
[1748472402092,1.80742755,107370.0,107360.0,0.10094952]
[1748472402488,1.86515732,107370.0,107360.0,0.10094952]
[1748472405292,1.78447841,107370.0,107360.0,0.10094952]
[1748472405491,1.86528699,107370.0,107360.0,0.10094952]
[1748472407686,1.83528699,107370.0,107360.0,0.10094952]
[1748472408997,1.92197546,107370.0,107360.0,0.10094952]
[1748472409296,1.83528518,107370.0,107360.0,0.10094952]
[1748472409498,1.92197546,107370.0,107360.0,0.10094952]
[1748472409699,1.79698383,107370.0,107360.0,0.10094952]
[1748472409886,1.71027173,107370.0,107360.0,0.10094952]
[1748472410596,1.79696201,107370.0,107360.0,0.10094952]
[1748472414187,1.79692112,107370.0,107360.0,0.10094952]
[1748472418395,1.75339882,107370.0,107360.0,0.10094952]
[1748472418593,1.75340647,107370.0,107360.0,0.10094952]
[1748472418793,1.75340647,107370.0,107360.0,0.10082952]
[1748472420703,1.32824647,107370.0,107360.0,0.28706402]
[1748472421007,1.75340647,107370.0,107360.0,0.28706402]
[1748472422002,1.75340647,107370.0,107360.0,0.10082952]
[1748472422808,1.75340647,107370.0,107360.0,0.28706392]
[1748472423309,1.62843227,107370.0,107360.0,0.28706392]
[1748472423507,1.75340647,107370.0,107360.0,0.28706392]
[1748472425007,0.96744647,107370.0,107360.0,0.28706392]
[1748472425206,1.39256647,107370.0,107360.0,0.28706392]
[1748472426797,0.84247227,107370.0,107360.0,0.28706392]
[1748472426996,1.39256647,107370.0,107360.0,0.28706392]
[1748472427209,1.39258849,107370.0,107360.0,0.28706392]
[1748472431311,1.39258849,107370.0,107360.0,0.35828785]
[1748472431703,1.75339561,107370.0,107360.0,0.35828785]
[1748472431904,1.75339561,107370.0,107360.0,0.28706392]
[1748472432103,1.75339561,107370.0,107360.0,0.35828785]
[1748472433016,1.75965229,107370.0,107360.0,0.41061766]
[1748472435512,0.80521665,107370.0,107360.0,0.33939373]
[1748472435816,1.26862057,107370.0,107360.0,0.33939373]
[1748472436205,0.84350057,107370.0,107360.0,0.33939373]
[1748472436402,1.62942057,107370.0,107360.0,0.33939373]
[1748472440511,1.26862057,107370.0,107360.0,0.33939373]
[1748472440818,1.28051782,107370.0,107360.0,0.61404451]
[1748472441219,1.28051782,107370.0,107360.0,0.48907031]
[1748472441725,1.22278805,107370.0,107360.0,0.89324538]
[1748472443427,1.22278805,107370.0,107360.0,0.84987031]
[1748472444733,1.22276959,107370.0,107360.0,0.84987031]
[1748472448923,1.1792508,107370.0,107360.0,0.84987031]
[1748472449239,1.1792108,107370.0,107360.0,0.84987031]
[1748472450644,1.1466708,107370.0,107360.0,1.01819108]
[1748472451036,1.1466708,107370.0,107360.0,0.96586127]
[1748472453243,0.7216308,107370.0,107360.0,0.92082202]
[1748472453445,0.7216308,107370.0,107360.0,0.92081205]
[1748472453646,0.7521308,107370.0,107360.0,0.99921432]
[1748472454046,0.7521308,107370.0,107360.0,0.87424012]
[1748472454437,0.7851308,107370.0,107360.0,0.84078783]
[1748472454637,0.7521308,107370.0,107360.0,0.84078358]
[1748472454941,0.7851308,107370.0,107360.0,0.84090358]
[1748472455534,0.78964635,107370.0,107360.0,0.84090358]
[1748472457957,0.78964635,107370.0,107360.0,0.84089424]
[1748472460951,0.78964635,107370.0,107360.0,0.48009424]
[1748472461151,0.82214635,107370.0,107360.0,0.41784066]
[1748472461349,0.82214635,107370.0,107360.0,0.4890257]
[1748472461555,1.18294635,107370.0,107360.0,0.4890257]
[1748472462052,1.18294635,107370.0,107360.0,0.4889057]
[1748472462850,1.18294635,107370.0,107360.0,0.4890257]
[1748472463646,1.1784308,107370.0,107360.0,0.4890257]
[1748472467956,1.1784308,107370.0,107360.0,0.41784066]
[1748472468454,1.22192443,107370.0,107360.0,0.41784066]
[1748472468860,1.1784308,107370.0,107360.0,0.4890257]
[1748472469357,1.1784308,107370.0,107340.0,0.23536304]
[1748472469358,0.1862519,107350.0,107340.0,0.23536304]
[1748472469557,0.186304,107320.0,107310.0,0.13010919]
[1748472469763,0.186304,107320.0,107300.0,0.13010919]
[1748472469764,0.1863213,107310.0,107300.0,0.13010919]
[1748472469964,0.18027927,107300.0,107290.0,0.76668958]
[1748472470259,0.74022767,107300.0,107290.0,0.37551733]
[1748472470466,1.29446058,107300.0,107290.0,0.56195171]
[1748472470655,1.24472152,107300.0,107290.0,0.56207171]
[1748472470852,1.24472152,107300.0,107290.0,0.56146002]
[1748472471056,1.20218638,107300.0,107290.0,0.56145933]
[1748472471254,1.20218638,107300.0,107290.0,0.54855418]
[1748472471655,1.20218638,107300.0,107290.0,0.54867418]
[1748472471855,0.77722638,107300.0,107290.0,0.54967418]
[1748472472054,0.65225218,107300.0,107290.0,0.54967418]
[1748472472454,0.66634248,107300.0,107290.0,0.54967418]
[1748472472764,0.79146603,107300.0,107290.0,0.54967418]
[1748472473868,0.79146603,107300.0,107290.0,0.54955418]
[1748472474162,0.79146603,107300.0,107290.0,0.54967418]
[1748472474464,0.79146603,107300.0,107290.0,0.61237418]
[1748472475362,0.79146603,107300.0,107290.0,0.64517418]
[1748472478668,1.15226603,107300.0,107290.0,0.01377614]
[1748472478859,0.186356,107290.0,107280.0,0.00292952]
[1748472479166,1.52217246,107290.0,107280.0,0.00292952]
[1748472479558,1.16137246,107290.0,107280.0,0.00304952]
[1748472479958,1.52217246,107290.0,107280.0,0.19142282]
[1748472480369,1.52217246,107290.0,107280.0,0.00504952]
[1748472481357,1.52217246,107290.0,107280.0,0.00704952]
[1748472481761,1.69729601,107290.0,107280.0,0.00704952]
[1748472482059,0.1863907,107270.0,107260.0,0.6715965]
[1748472482368,1.15507425,107270.0,107260.0,0.7017965]
[1748472482576,1.21894716,107270.0,107260.0,0.7017965]
[1748472482772,1.21870199,107270.0,107260.0,0.7017965]
[1748472483771,1.21970199,107270.0,107260.0,0.7017965]
[1748472485069,1.22070199,107270.0,107260.0,0.70631205]
[1748472485564,0.69714199,107270.0,107260.0,0.70631205]
[1748472485756,0.87757291,107270.0,107260.0,0.8314356]
[1748472485952,1.06396371,107270.0,107260.0,0.8314356]
[1748472486156,0.32237291,107270.0,107260.0,0.8314356]
[1748472486365,0.42077291,107270.0,107260.0,0.8314356]
[1748472487360,0.42077291,107270.0,107260.0,0.70631205]
[1748472487864,0.35317291,107270.0,107260.0,0.8315556]
[1748472488060,0.32237291,107270.0,107260.0,0.82704005]
[1748472488370,0.32237291,107270.0,107260.0,0.83704005]
[1748472488954,0.32237291,107270.0,107260.0,0.8415556]
[1748472489158,0.32237291,107270.0,107260.0,0.9247836]
[1748472489355,0.32237291,107270.0,107260.0,1.1147836]
[1748472490961,0.32237291,107270.0,107260.0,1.3647836]
[1748472491959,0.32237291,107270.0,107260.0,1.4632236]
[1748472492159,0.32237291,107270.0,107260.0,1.3647836]
[1748472492377,1e-08,107280.0,107270.0,0.1863908]
[1748472492572,0.06000001,107280.0,107270.0,1.1295379]
[1748472492771,0.16000001,107280.0,107270.0,1.4727579]
[1748472492960,0.16000001,107280.0,107270.0,2.84763435]
[1748472493464,0.0140903,107300.0,107290.0,0.1863561]
[1748472493665,0.36,107300.0,107290.0,1.47259965]
[1748472493870,0.3230182,107300.0,107290.0,2.12919965]
[1748472494172,0.1460189,107300.0,107290.0,2.2543232]
[1748472494372,0.00037291,107310.0,107300.0,0.1863387]
[1748472494373,3e-08,107310.0,107300.0,0.1863387]
[1748472494569,0.25078481,107330.0,107320.0,0.1863038]
[1748472494763,0.5904119,107330.0,107320.0,0.54784962]
[1748472494963,0.5904119,107330.0,107320.0,0.90864962]
[1748472495880,0.5914119,107330.0,107320.0,0.90864962]
[1748472496175,0.73059691,107330.0,107320.0,0.90864962]
[1748472496371,0.73059691,107330.0,107320.0,0.90876962]
[1748472497076,0.73259691,107330.0,107320.0,0.90876962]
[1748472497571,1.16215691,107330.0,107320.0,0.90876962]
[1748472499268,1.16215691,107330.0,107320.0,0.54796962]
[1748472499584,1.20376476,107330.0,107320.0,0.54796962]
[1748472499761,1.07864121,107330.0,107320.0,0.54796962]
[1748472500170,1.07864121,107330.0,107320.0,0.55248517]
[1748472501178,1.07864121,107330.0,107320.0,0.54796962]
[1748472501379,1.07863443,107330.0,107320.0,0.54796962]
[1748472502880,0.64907443,107330.0,107320.0,0.54796962]
[1748472503067,0.60747336,107330.0,107320.0,0.67309317]
[1748472503380,0.42118686,107330.0,107320.0,0.68309317]
[1748472503584,0.60747356,107330.0,107320.0,0.74889317]
[1748472504277,0.60747356,107330.0,107320.0,0.75340872]
[1748472507383,0.42118686,107330.0,107320.0,0.75340872]
[1748472507679,0.4061,107330.0,107320.0,1.18208872]
[1748472509681,0.5923865,107330.0,107320.0,0.44198137]
[1748472509977,0.5923865,107330.0,107320.0,0.36606137]
[1748472509978,0.73123513,107330.0,107320.0,0.36606137]
[1748472510183,1.69162582,107330.0,107320.0,0.00538137]
[1748472510375,0.1863039,107320.0,107310.0,0.00432731]
[1748472510681,1.04462745,107320.0,107310.0,0.00432731]
[1748472510982,1.04462745,107320.0,107310.0,0.19064851]
[1748472511473,0.68382745,107320.0,107310.0,0.19064851]
[1748472511673,0.68782745,107320.0,107310.0,0.19064851]
[1748472511871,0.69953227,107320.0,107310.0,0.19064851]
[1748472512484,0.70253227,107320.0,107310.0,0.19064851]
[1748472513381,0.73393227,107320.0,107310.0,0.19064851]
[1748472514286,0.5971039,107320.0,107310.0,0.19064851]
[1748472514684,0.63871255,107320.0,107310.0,0.19064851]
[1748472515078,0.63871255,107320.0,107310.0,0.55144851]
[1748472515286,1.1265439,107320.0,107310.0,0.55144851]
[1748472515473,1.16818116,107320.0,107310.0,0.55144851]
[1748472515673,1.1265439,107320.0,107310.0,0.55144851]
[1748472515877,1.1265439,107320.0,107310.0,0.54865851]
[1748472516283,1.16818261,107320.0,107310.0,0.54865851]
[1748472517886,1.16818261,107320.0,107310.0,0.55144851]
[1748472518475,1.1265439,107320.0,107310.0,0.55144851]
[1748472518674,1.1682464,107320.0,107310.0,0.55144851]
[1748472522585,1.1682464,107320.0,107310.0,0.58244851]
[1748472526389,0.6388064,107320.0,107310.0,0.58244851]
[1748472526577,0.7392464,107320.0,107310.0,0.64714851]
[1748472526779,1.1682464,107320.0,107310.0,0.64714851]
[1748472527981,1.1652464,107320.0,107310.0,0.64714851]
[1748472528200,0.7382464,107320.0,107310.0,0.61564851]
[1748472528382,1.1651664,107320.0,107310.0,0.64584851]
[1748472528577,1.1651664,107320.0,107310.0,0.65036406]
[1748472529676,1.1651664,107320.0,107310.0,0.64584851]
[1748472530291,0.6358064,107320.0,107310.0,0.64584851]
[1748472530487,0.7362464,107320.0,107310.0,0.64584851]
[1748472532285,0.6945439,107320.0,107310.0,0.71660016]
[1748472532787,0.6945439,107320.0,107310.0,0.72111571]
[1748472535893,0.6945439,107320.0,107310.0,0.71832571]
[1748472536690,0.73634335,107320.0,107310.0,0.71832571]
[1748472537393,0.73634335,107320.0,107310.0,0.68812571]
[1748472537892,0.86140335,107320.0,107310.0,0.68640016]
[1748472538197,0.89410335,107320.0,107310.0,0.68640016]
[1748472538397,0.89410335,107320.0,107310.0,0.61564851]
[1748472538899,0.76904335,107320.0,107310.0,0.68684123]
[1748472539396,0.73634335,107320.0,107310.0,0.61564851]
[1748472540293,0.73634335,107320.0,107310.0,0.64824851]
[1748472540493,0.7363742,107320.0,107310.0,0.64824851]
[1748472540901,0.7363742,107320.0,107310.0,0.65276406]
[1748472541799,0.7363742,107320.0,107310.0,0.64824851]
[1748472542794,0.4496303,107320.0,107310.0,0.90330851]